[Event "Chessity Nationale Pupillendag 2019 - Groep F"]
[Site "Meppel, Netherlands"]
[Date "2019.06.29"]
[Round "2.1"]
[White "Jorritsma, Eli Alia"]
[Black "Grooten, Tommy"]
[Result "0-1"]
[TimeControl "15 min + 10 sec"]
[WhiteElo "666"]
[BlackElo "1318"]

1. e4 {[%clk 00:15:19]} c5 {[%clk 00:15:20]} {[%emt 00:00:01]} 2. Nf3 {[%clk
00:15:26]} {[%emt 00:00:02]} e6 {[%clk 00:15:29]} {[%emt 00:00:01]} 3. Nc3
{[%clk 00:15:34]} {[%emt 00:00:02]} d6 {[%clk 00:15:37]} {[%emt 00:00:02]} 4.
Be2 {[%clk 00:15:37]} {[%emt 00:00:07]} Nc6 {[%clk 00:15:45]} {[%emt 00:00:02]}
5. d3 {[%clk 00:15:44]} {[%emt 00:00:03]} Nf6 {[%clk 00:15:54]} {[%emt
00:00:02]} 6. Be3 {[%clk 00:15:49]} {[%emt 00:00:05]} a6 {[%clk 00:16:01]}
{[%emt 00:00:03]} 7. O-O {[%clk 00:15:52]} {[%emt 00:00:06]} b5 {[%clk
00:16:10]} {[%emt 00:00:02]} 8. a3 {[%clk 00:15:58]} {[%emt 00:00:04]} Be7
{[%clk 00:16:17]} {[%emt 00:00:03]} 9. Qd2 {[%clk 00:15:45]} {[%emt 00:00:23]}
O-O {[%clk 00:16:24]} {[%emt 00:00:03]} 10. Bg5 {[%clk 00:15:39]} {[%emt
00:00:15]} Qc7 {[%clk 00:16:24]} {[%emt 00:00:11]} 11. Bxf6 {[%clk 00:15:30]}
{[%emt 00:00:18]} Bxf6 {[%clk 00:16:33]} {[%emt 00:00:03]} 12. Rad1 {[%clk
00:15:08]} {[%emt 00:00:31]} Bb7 {[%clk 00:16:39]} {[%emt 00:00:04]} 13. b4
{[%clk 00:14:38]} {[%emt 00:00:40]} Nd4 {[%clk 00:16:04]} {[%emt 00:00:46]} 14.
Nxd4 {[%clk 00:14:37]} {[%emt 00:00:10]} Bxd4 {[%clk 00:16:01]} {[%emt
00:00:13]} 15. bxc5 {[%clk 00:14:11]} {[%emt 00:00:36]} Qxc5 {[%clk 00:16:10]}
16. Nb1 {[%clk 00:13:43]} {[%emt 00:00:39]} Rac8 {[%clk 00:16:13]} {[%emt
00:00:07]} 17. Rc1 {[%clk 00:13:47]} {[%emt 00:00:06]} Bb2 {[%clk 00:16:21]}
{[%emt 00:00:02]} 18. Rcd1 {[%clk 00:13:33]} {[%emt 00:00:23]} Qxc2 {[%clk
00:16:25]} {[%emt 00:00:06]} 19. Qe3 {[%clk 00:13:26]} {[%emt 00:00:17]} Qc5
{[%clk 00:16:32]} {[%emt 00:00:04]} 20. Qd2 {[%clk 00:13:26]} {[%emt 00:00:09]}
Bxa3 {[%clk 00:16:36]} {[%emt 00:00:07]} 21. d4 {[%clk 00:12:59]} {[%emt
00:00:37]} Qb4 {[%clk 00:16:42]} {[%emt 00:00:03]} 22. Qe3 {[%clk 00:12:44]}
{[%emt 00:00:23]} Bb2 {[%clk 00:16:19]} {[%emt 00:00:35]} 23. Rd2 {[%clk
00:12:31]} {[%emt 00:00:22]} Bc3 {[%clk 00:16:22]} {[%emt 00:00:08]} 24. Rc2
{[%clk 00:12:28]} {[%emt 00:00:12]} Bxd4 {[%clk 00:16:29]} {[%emt 00:00:05]} 25.
Qc1 {[%clk 00:12:20]} {[%emt 00:00:14]} Rxc2 {[%clk 00:16:36]} {[%emt
00:00:07]} 26. Qxc2 {[%clk 00:12:25]} {[%emt 00:00:05]} Bxe4 {[%clk 00:16:45]}
{[%emt 00:00:01]} 27. Qxe4 {[%clk 00:12:20]} {[%emt 00:00:15]} Bxf2+ {[%clk
00:16:53]} {[%emt 00:00:02]} 28. Rxf2 {[%clk 00:12:01]} {[%emt 00:00:28]} Qxe4
{[%clk 00:17:01]} {[%emt 00:00:02]} 29. Nd2 {[%clk 00:11:51]} {[%emt 00:00:20]}
Qe3 {[%clk 00:17:10]} {[%emt 00:00:01]} 30. Bf3 {[%clk 00:11:47]} {[%emt
00:00:12]} Rc8 {[%clk 00:17:12]} {[%emt 00:00:09]} 31. Nf1 {[%clk 00:11:41]}
{[%emt 00:00:16]} Qb6 {[%clk 00:17:06]} {[%emt 00:00:16]} 32. Be2 {[%clk
00:11:17]} {[%emt 00:00:34]} Rc2 {[%clk 00:17:14]} {[%emt 00:00:02]} 33. Ng3
{[%clk 00:10:59]} {[%emt 00:00:27]} b4 {[%clk 00:17:09]} {[%emt 00:00:15]} 34.
Bd1 {[%clk 00:10:43]} {[%emt 00:00:25]} Qxf2+ {[%clk 00:17:13]} {[%emt
00:00:08]} 35. Kh1 {[%clk 00:10:46]} {[%emt 00:00:04]} Qe1+ {[%clk 00:17:18]}
{[%emt 00:00:08]} 0-1

[Event "Chessity Nationale Pupillendag 2019 - Groep F"]
[Site "Meppel, Netherlands"]
[Date "2019.06.29"]
[Round "2.2"]
[White "Sterk, Ralf"]
[Black "Koorevaar, Sarah-Joy"]
[Result "0-1"]
[TimeControl "15 min + 10 sec"]
[WhiteElo "962"]
[BlackElo "648"]

1. e4 {[%clk 00:15:18]} {[%emt 00:00:01]} c5 {[%clk 00:15:18]} {[%emt
00:00:02]} 2. c3 {[%clk 00:15:27]} {[%emt 00:00:01]} Nc6 {[%clk 00:15:25]}
{[%emt 00:00:03]} 3. d4 {[%clk 00:15:34]} {[%emt 00:00:02]} cxd4 {[%clk
00:15:05]} {[%emt 00:00:30]} 4. cxd4 {[%clk 00:15:42]} {[%emt 00:00:02]} d6
{[%clk 00:15:04]} {[%emt 00:00:11]} 5. Nc3 {[%clk 00:15:46]} {[%emt 00:00:05]}
Nf6 {[%clk 00:15:10]} {[%emt 00:00:05]} 6. Nf3 {[%clk 00:15:46]} {[%emt
00:00:10]} Bg4 {[%clk 00:15:18]} {[%emt 00:00:03]} 7. h3 {[%clk 00:15:52]}
{[%emt 00:00:03]} Bxf3 {[%clk 00:15:11]} {[%emt 00:00:17]} 8. gxf3 {[%clk
00:15:59]} {[%emt 00:00:04]} g6 {[%clk 00:15:16]} {[%emt 00:00:05]} 9. Be3
{[%clk 00:15:59]} {[%emt 00:00:09]} Bg7 {[%clk 00:15:24]} {[%emt 00:00:03]} 10.
Qd2 {[%clk 00:16:07]} {[%emt 00:00:02]} O-O {[%clk 00:15:25]} {[%emt 00:00:10]}
11. Bh6 {[%clk 00:16:15]} {[%emt 00:00:02]} Bxh6 {[%clk 00:14:38]} {[%emt
00:00:56]} 12. Qxh6 {[%clk 00:16:24]} {[%emt 00:00:02]} Nxd4 {[%clk 00:14:45]}
{[%emt 00:00:03]} 13. Be2 {[%clk 00:16:19]} {[%emt 00:00:14]} Nc2+ {[%clk
00:14:51]} {[%emt 00:00:04]} 14. Kf1 {[%clk 00:16:27]} {[%emt 00:00:02]} Nxa1
{[%clk 00:14:55]} {[%emt 00:00:06]} 15. Bd3 {[%clk 00:16:35]} {[%emt 00:00:02]}
Qb6 {[%clk 00:14:23]} {[%emt 00:00:36]} 16. b3 {[%clk 00:16:30]} {[%emt
00:00:21]} Qd4 {[%clk 00:14:20]} {[%emt 00:00:11]} 17. Ne2 {[%clk 00:16:33]}
{[%emt 00:00:10]} Qxd3 {[%clk 00:13:50]} {[%emt 00:00:40]} 18. h4 {[%clk
00:16:40]} {[%emt 00:00:03]} Qd1+ {[%clk 00:13:28]} {[%emt 00:00:28]} 19. Kg2
{[%clk 00:16:47]} {[%emt 00:00:06]} Qxe2 {[%clk 00:13:35]} {[%emt 00:00:03]} 20.
h5 {[%clk 00:16:54]} Qb2 {[%clk 00:13:23]} {[%emt 00:00:25]} 21. Rg1 Nxh5
{[%clk 00:13:02]} 22. f4 {[%clk 00:16:31]} {[%emt 00:00:19]} Qg7 {[%clk
00:12:52]} {[%emt 00:00:20]} 23. Qg5 {[%clk 00:16:31]} {[%emt 00:00:11]} h6
{[%clk 00:12:29]} {[%emt 00:00:33]} 24. Qh4 {[%clk 00:16:39]} f6 {[%clk
00:11:08]} {[%emt 00:01:34]} 25. f5 {[%clk 00:16:47]} {[%emt 00:00:01]} Rac8
{[%clk 00:10:09]} {[%emt 00:01:08]} 26. fxg6 {[%clk 00:16:53]} {[%emt
00:00:04]} Qxg6+ {[%clk 00:10:17]} {[%emt 00:00:03]} 27. Kh2 {[%clk 00:17:02]}
{[%emt 00:00:01]} Qxg1+ {[%clk 00:09:26]} {[%emt 00:01:01]} 28. Kxg1 {[%clk
00:17:10]} {[%emt 00:00:02]} Rc1+ {[%clk 00:09:28]} {[%emt 00:00:07]} 29. Kg2
{[%clk 00:17:16]} {[%emt 00:00:05]} Rf7 {[%clk 00:08:38]} {[%emt 00:01:01]} 30.
Qxh5 {[%clk 00:17:14]} {[%emt 00:00:13]} Rg7+ {[%clk 00:08:46]} 31. Kf3 {[%clk
00:17:17]} {[%emt 00:00:08]} Rc3+ {[%clk 00:08:52]} {[%emt 00:00:03]} 32. Ke2
{[%clk 00:17:15]} {[%emt 00:00:12]} Nc2 {[%clk 00:08:10]} {[%emt 00:00:53]} 33.
Kd2 {[%clk 00:17:19]} {[%emt 00:00:05]} Rc5 {[%clk 00:08:04]} {[%emt 00:00:14]}
34. Qxh6 {[%clk 00:17:22]} {[%emt 00:00:09]} Rg2 {[%clk 00:08:01]} {[%emt
00:00:13]} 35. Qf4 {[%clk 00:16:58]} {[%emt 00:00:34]} Nd4 {[%clk 00:07:35]}
{[%emt 00:00:35]} 36. Kd3 {[%clk 00:16:42]} {[%emt 00:00:27]} Ne6 {[%clk
00:07:29]} {[%emt 00:00:15]} 37. Qf3 {[%clk 00:16:19]} {[%emt 00:00:34]} Rgg5
{[%clk 00:06:30]} {[%emt 00:01:05]} 38. Kd2 {[%clk 00:16:19]} {[%emt 00:00:11]}
Nd4 {[%clk 00:06:35]} {[%emt 00:00:08]} 39. Qe3 {[%clk 00:15:52]} {[%emt
00:00:36]} Rc2+ {[%clk 00:05:27]} {[%emt 00:01:17]} 40. Kd3 {[%clk 00:16:00]}
{[%emt 00:00:03]} e5 {[%clk 00:05:26]} {[%emt 00:00:11]} 41. Qe1 {[%clk
00:15:23]} {[%emt 00:00:46]} Rh5 {[%clk 00:05:15]} {[%emt 00:00:20]} 42. Qg1+
{[%clk 00:15:03]} {[%emt 00:00:30]} Kh7 {[%clk 00:05:10]} {[%emt 00:00:15]} 43.
Qg4 {[%clk 00:15:11]} {[%emt 00:00:04]} Rh1 {[%clk 00:04:55]} {[%emt 00:00:25]}
44. Qd7+ {[%clk 00:15:05]} {[%emt 00:00:17]} Kg6 {[%clk 00:04:46]} {[%emt
00:00:14]} 45. Qg4+ {[%clk 00:15:11]} {[%emt 00:00:08]} Kh6 {[%clk 00:04:43]}
{[%emt 00:00:11]} 46. b4 {[%clk 00:15:16]} {[%emt 00:00:07]} d5 {[%clk
00:04:28]} {[%emt 00:00:26]} 47. f4 {[%clk 00:14:54]} {[%emt 00:00:32]} dxe4+
{[%clk 00:04:29]} {[%emt 00:00:09]} 48. Ke3 {[%emt 00:00:20]} 0-1

[Event "Chessity Nationale Pupillendag 2019 - Groep F"]
[Site "Meppel, Netherlands"]
[Date "2019.06.29"]
[Round "2.3"]
[White "Smets, Cas"]
[Black "Vijver, Jonathan"]
[Result "0-1"]
[TimeControl "15 min + 10 sec"]
[WhiteElo "649"]
[BlackElo "948"]

1. e4 {[%clk 00:15:19]} {[%emt 00:04:14]} e5 {[%clk 00:15:20]} 2. Nf3 {[%clk
00:15:27]} {[%emt 00:00:03]} Nc6 {[%clk 00:15:29]} 3. Bc4 {[%clk 00:15:35]}
{[%emt 00:00:03]} Nf6 {[%clk 00:15:38]} {[%emt 00:00:01]} 4. O-O {[%clk
00:15:34]} {[%emt 00:00:11]} d6 {[%clk 00:15:47]} 5. Nc3 {[%clk 00:15:37]}
{[%emt 00:00:06]} Bg4 {[%clk 00:15:56]} {[%emt 00:00:02]} 6. h3 {[%clk
00:15:34]} Bh5 {[%clk 00:16:05]} {[%emt 00:00:14]} 7. Be2 {[%emt 00:00:34]} Be7
{[%clk 00:15:56]} 8. Ng5 {[%clk 00:15:36]} {[%emt 00:00:02]} Bxe2 {[%clk
00:16:03]} {[%emt 00:00:04]} 9. Qxe2 {[%clk 00:15:44]} {[%emt 00:00:02]} Nd4
{[%clk 00:16:12]} {[%emt 00:00:02]} 10. Qe1 {[%clk 00:15:35]} {[%emt 00:00:17]}
Nxc2 {[%clk 00:16:19]} {[%emt 00:00:04]} 11. Qe2 {[%clk 00:15:29]} {[%emt
00:00:15]} Nxa1 {[%clk 00:16:27]} {[%emt 00:00:03]} 12. Qc4 {[%clk 00:15:09]}
{[%emt 00:00:26]} O-O {[%clk 00:16:18]} {[%emt 00:00:22]} 13. Nd5 {[%clk
00:14:58]} {[%emt 00:00:22]} Nxd5 {[%clk 00:16:26]} {[%emt 00:00:02]} 14. exd5
{[%clk 00:15:05]} {[%emt 00:00:03]} Bxg5 {[%clk 00:16:34]} {[%emt 00:00:02]} 15.
d3 {[%clk 00:14:58]} Bxc1 {[%clk 00:16:36]} {[%emt 00:00:24]} 16. Rxc1 {[%clk
00:15:06]} Rc8 {[%clk 00:16:07]} {[%emt 00:00:41]} 17. Rxa1 {[%emt 00:00:28]}
c6 18. Qb4 {[%clk 00:14:46]} {[%emt 00:00:02]} cxd5 {[%clk 00:16:22]} 19. Qxb7
{[%clk 00:14:46]} Qb6 {[%clk 00:16:22]} {[%emt 00:00:16]} 20. Qxd5 {[%clk
00:14:48]} Qxb2 {[%clk 00:16:29]} {[%emt 00:00:11]} 21. Rf1 {[%clk 00:14:32]}
{[%emt 00:00:19]} Rc1 {[%clk 00:16:44]} 22. Qxd6 {[%clk 00:14:32]} Rxf1+ {[%clk
00:16:44]} {[%emt 00:00:22]} 23. Kxf1 {[%clk 00:14:39]} {[%emt 00:00:04]} Qc1+
{[%clk 00:16:45]} {[%emt 00:00:07]} 24. Ke2 {[%clk 00:14:46]} Qc2+ {[%clk
00:16:53]} {[%emt 00:00:06]} 25. Ke3 {[%clk 00:14:51]} Qa4 {[%clk 00:16:51]}
{[%emt 00:00:16]} 26. g4 {[%clk 00:14:46]} Qf4+ {[%clk 00:16:58]} {[%emt
00:00:18]} 27. Ke2 {[%clk 00:14:48]} Qd4 {[%clk 00:16:59]} {[%emt 00:00:16]} 28.
Qe7 {[%clk 00:14:40]} e4 {[%clk 00:16:56]} {[%emt 00:00:33]} 29. dxe4 {[%clk
00:14:44]} Qd8 {[%clk 00:17:06]} 30. Qxa7 {[%clk 00:14:44]} Re8 {[%clk
00:17:11]} {[%emt 00:00:14]} 31. Qe3 {[%clk 00:14:49]} Qe7 {[%clk 00:17:13]}
{[%emt 00:00:19]} 32. f3 {[%clk 00:14:53]} Qb4 {[%clk 00:17:19]} {[%emt
00:00:10]} 33. h4 {[%clk 00:14:43]} Qb2+ {[%clk 00:17:27]} {[%emt 00:00:22]} 34.
Qd2 {[%clk 00:14:52]} Qxd2+ {[%clk 00:17:33]} {[%emt 00:00:05]} 35. Kxd2 {[%emt
00:00:03]} g6 {[%clk 00:17:41]} 36. g5 {[%clk 00:15:03]} {[%emt 00:00:06]} Kg7
{[%clk 00:17:50]} 37. Kc3 {[%clk 00:15:12]} {[%emt 00:00:04]} f5 {[%clk
00:17:55]} {[%emt 00:00:05]} 38. Kd4 {[%clk 00:15:15]} {[%emt 00:00:06]} fxe4
39. fxe4 {[%clk 00:15:24]} h6 {[%clk 00:18:11]} {[%emt 00:00:02]} 40. a4 {[%clk
00:15:31]} {[%emt 00:00:04]} hxg5 {[%clk 00:18:18]} {[%emt 00:00:03]} 41. hxg5
{[%clk 00:15:38]} {[%emt 00:00:03]} Kf7 {[%clk 00:18:26]} {[%emt 00:00:02]} 42.
Kc5 {[%clk 00:15:46]} {[%emt 00:00:02]} Ke7 {[%clk 00:18:35]} {[%emt 00:00:02]}
43. a5 {[%clk 00:15:55]} {[%emt 00:00:02]} Kd7 {[%clk 00:18:44]} {[%emt
00:00:02]} 44. a6 {[%clk 00:16:04]} Rxe4 {[%clk 00:18:47]} {[%emt 00:00:05]} 45.
a7 {[%clk 00:16:08]} {[%emt 00:00:06]} Ra4 {[%clk 00:18:55]} {[%emt 00:00:02]}
46. Kb6 {[%clk 00:16:17]} {[%emt 00:00:02]} Ke6 {[%clk 00:19:02]} {[%emt
00:00:02]} 47. Kb7 {[%clk 00:16:25]} {[%emt 00:00:02]} Kf5 {[%clk 00:19:11]}
{[%emt 00:00:01]} 48. a8=Q {[%emt 00:00:10]} Rxa8 {[%clk 00:19:12]} {[%emt
00:00:04]} 49. Kxa8 {[%clk 00:16:36]} {[%emt 00:00:01]} Kxg5 {[%clk 00:19:20]}
{[%emt 00:00:04]} 50. Kb7 {[%clk 00:16:45]} {[%emt 00:00:01]} Kf4 {[%clk
00:19:29]} {[%emt 00:00:01]} 51. Kc6 {[%clk 00:16:55]} g5 {[%clk 00:19:38]}
{[%emt 00:00:02]} 52. Kd5 {[%clk 00:17:03]} g4 {[%clk 00:19:47]} 53. Kd4 {[%emt
00:00:04]} Kf3 {[%clk 00:19:55]} 54. Kd3 {[%clk 00:17:22]} g3 {[%clk 00:20:04]}
{[%emt 00:00:02]} 55. Kd2 {[%clk 00:17:31]} Kf2 {[%clk 00:20:12]} {[%emt
00:00:01]} 56. Kd3 {[%clk 00:17:40]} {[%emt 00:00:01]} g2 {[%clk 00:20:21]} 57.
Kd2 {[%clk 00:17:49]} {[%emt 00:00:01]} g1=Q {[%clk 00:20:27]} {[%emt
00:00:03]} 58. Kd3 {[%clk 00:17:58]} {[%emt 00:00:02]} Qe1 {[%clk 00:20:33]}
{[%emt 00:00:03]} 59. Kc4 {[%clk 00:18:07]} {[%emt 00:00:02]} Qd2 {[%clk
00:20:42]} {[%emt 00:00:01]} 60. Kb5 {[%clk 00:18:15]} {[%emt 00:00:01]} Qc3
{[%clk 00:20:51]} {[%emt 00:00:01]} 61. Ka6 {[%clk 00:18:24]} {[%emt 00:00:01]}
Qb4 {[%clk 00:20:59]} 62. Ka7 {[%clk 00:18:33]} Qb5 {[%clk 00:21:08]} {[%emt
00:00:02]} 63. Ka8 {[%clk 00:18:42]} {[%emt 00:00:01]} Ke3 {[%clk 00:21:18]} 64.
Ka7 {[%clk 00:18:51]} {[%emt 00:00:02]} Kd4 {[%clk 00:21:27]} {[%emt 00:00:01]}
65. Ka8 {[%clk 00:19:00]} Kc5 {[%clk 00:21:35]} {[%emt 00:00:02]} 66. Ka7
{[%clk 00:19:09]} {[%emt 00:00:03]} Kc6 {[%clk 00:21:45]} 67. Ka8 Qb7# {[%emt
00:00:01]} 0-1

[Event "Chessity Nationale Pupillendag 2019 - Groep F"]
[Site "Meppel, Netherlands"]
[Date "2019.06.29"]
[Round "2.5"]
[White "Heukelom, Aurelia"]
[Black "Verwer, Oscar"]
[Result "1-0"]
[TimeControl "15 min + 10 sec"]
[WhiteElo "643"]
[BlackElo "864"]

1. d4 {[%clk 00:15:19]} Nf6 {[%clk 00:15:18]} {[%emt 00:00:03]} 2. c4 {[%clk
00:15:27]} {[%emt 00:00:02]} g6 {[%clk 00:15:27]} {[%emt 00:00:01]} 3. Nf3
{[%clk 00:15:35]} {[%emt 00:00:02]} Bg7 {[%clk 00:15:36]} {[%emt 00:00:01]} 4.
Nc3 {[%clk 00:15:44]} {[%emt 00:00:02]} d5 {[%clk 00:15:44]} {[%emt 00:00:01]}
5. cxd5 {[%clk 00:15:48]} {[%emt 00:00:05]} Nxd5 {[%clk 00:15:52]} {[%emt
00:00:02]} 6. Nxd5 {[%clk 00:15:56]} {[%emt 00:00:03]} Qxd5 {[%clk 00:15:58]}
{[%emt 00:00:05]} 7. e3 {[%clk 00:16:03]} {[%emt 00:00:02]} O-O {[%clk
00:16:03]} {[%emt 00:00:05]} 8. Be2 {[%clk 00:16:10]} {[%emt 00:00:03]} Bg4
{[%clk 00:16:03]} {[%emt 00:00:11]} 9. O-O {[%clk 00:16:11]} {[%emt 00:00:08]}
c5 {[%clk 00:15:39]} {[%emt 00:00:33]} 10. h3 {[%clk 00:16:01]} {[%emt
00:00:20]} Bf5 {[%clk 00:15:39]} {[%emt 00:00:06]} 11. dxc5 {[%clk 00:15:07]}
{[%emt 00:01:10]} Qxc5 {[%clk 00:15:48]} {[%emt 00:00:02]} 12. Nd4 {[%clk
00:14:52]} {[%emt 00:00:24]} Nc6 {[%clk 00:15:27]} {[%emt 00:00:31]} 13. Nxc6
{[%clk 00:14:47]} {[%emt 00:00:14]} Qxc6 {[%clk 00:15:36]} {[%emt 00:00:02]} 14.
Bf3 {[%clk 00:14:45]} {[%emt 00:00:11]} Qc7 {[%clk 00:15:22]} {[%emt 00:00:24]}
15. e4 {[%clk 00:14:39]} {[%emt 00:00:17]} Rfd8 {[%clk 00:15:24]} {[%emt
00:00:08]} 16. Qe2 {[%clk 00:14:17]} {[%emt 00:00:31]} Be6 {[%clk 00:15:13]}
{[%emt 00:00:22]} 17. Bg4 {[%clk 00:13:20]} {[%emt 00:01:06]} Bc4 {[%clk
00:15:21]} {[%emt 00:00:03]} 18. Qc2 {[%clk 00:13:16]} {[%emt 00:00:15]} Qc6
{[%clk 00:14:57]} {[%emt 00:00:34]} 19. Re1 {[%clk 00:13:04]} {[%emt 00:00:21]}
Qb6 {[%clk 00:14:25]} {[%emt 00:00:42]} 20. Qxc4 {[%clk 00:12:34]} {[%emt
00:00:39]} Qa5 {[%clk 00:13:58]} {[%emt 00:00:38]} 21. Rd1 {[%clk 00:12:01]}
{[%emt 00:00:43]} h5 {[%clk 00:13:23]} {[%emt 00:00:45]} 22. Bf3 {[%clk
00:11:43]} {[%emt 00:00:27]} Rac8 {[%clk 00:12:53]} {[%emt 00:00:41]} 23. Bd2
{[%clk 00:10:51]} {[%emt 00:01:04]} Qb6 {[%clk 00:12:02]} {[%emt 00:01:00]} 24.
Qb4 {[%clk 00:10:02]} {[%emt 00:00:59]} Qc7 {[%clk 00:11:11]} {[%emt 00:01:01]}
25. Rac1 {[%clk 00:09:45]} {[%emt 00:00:27]} Qb8 {[%clk 00:10:14]} {[%emt
00:01:04]} 26. g3 {[%clk 00:09:35]} {[%emt 00:00:22]} Rd4 {[%clk 00:09:31]}
{[%emt 00:00:54]} 27. Qxe7 {[%clk 00:08:47]} {[%emt 00:00:58]} Rd3 {[%clk
00:07:52]} {[%emt 00:01:50]} 28. Bf4 {[%clk 00:08:15]} {[%emt 00:00:41]} Rxd1+
{[%clk 00:07:48]} {[%emt 00:00:14]} 29. Rxd1 {[%clk 00:08:09]} {[%emt
00:00:17]} Qa8 {[%clk 00:07:43]} {[%emt 00:00:15]} 30. e5 {[%clk 00:08:03]}
{[%emt 00:00:16]} Bf8 {[%clk 00:07:23]} {[%emt 00:00:30]} 31. Qf6 {[%clk
00:07:04]} {[%emt 00:01:07]} Bg7 {[%clk 00:07:09]} {[%emt 00:00:26]} 32. Qe7
{[%clk 00:06:53]} {[%emt 00:00:20]} Bf8 {[%clk 00:07:17]} {[%emt 00:00:03]} 33.
Qg5 {[%clk 00:06:43]} {[%emt 00:00:19]} a5 {[%clk 00:06:48]} {[%emt 00:00:39]}
34. Bxh5 {[%clk 00:06:41]} {[%emt 00:00:12]} Qa6 {[%clk 00:06:41]} {[%emt
00:00:17]} 35. Bg4 {[%clk 00:06:38]} {[%emt 00:00:11]} Bg7 {[%clk 00:06:07]}
{[%emt 00:00:47]} 36. Bxc8 {[%clk 00:06:34]} {[%emt 00:00:14]} Qc6 {[%clk
00:05:45]} {[%emt 00:00:32]} 37. Rd8+ {[%clk 00:06:15]} {[%emt 00:00:29]} Bf8
{[%clk 00:05:52]} {[%emt 00:00:03]} 38. Qh6 {[%clk 00:05:48]} {[%emt 00:00:33]}
Qc5 {[%clk 00:05:44]} {[%emt 00:00:23]} 39. Bg5 {[%clk 00:05:26]} {[%emt
00:00:28]} Qb4 {[%clk 00:05:33]} {[%emt 00:00:24]} 40. Bf6 {[%clk 00:05:21]}
{[%emt 00:00:13]} Qe1+ {[%clk 00:05:42]} {[%emt 00:00:03]} 41. Kg2 {[%clk
00:05:27]} {[%emt 00:00:04]} Qe4+ {[%clk 00:05:50]} {[%emt 00:00:02]} 42. Kh2
{[%emt 00:00:36]} 1-0